[Event "ONJK 2024 ABC"]
[Site "Velp, Netherlands"]
[Date "2024.08.03"]
[Round "2.12"]
[White "Kool, Jesper"]
[Black "Helderman, Faas"]
[Result "1-0"]
[TimeControl "90 minutes + 30 seconds"]
[WhiteElo "1823"]
[BlackElo "1603"]

1. e4 {[%clk 01:30:57]} {[%emt 00:00:02]} c6 {[%clk 01:30:53]} {[%emt
00:00:07]} 2. d4 {[%clk 01:31:23]} {[%emt 00:00:04]} d5 {[%clk 01:31:15]}
{[%emt 00:00:08]} 3. exd5 {[%clk 01:31:51]} {[%emt 00:00:02]} cxd5 {[%clk
01:31:34]} {[%emt 00:00:10]} 4. c4 {[%clk 01:32:18]} {[%emt 00:00:05]} Nf6
{[%clk 01:31:54]} {[%emt 00:00:09]} 5. Nc3 {[%clk 01:32:38]} {[%emt 00:00:10]}
g6 {[%clk 01:32:10]} {[%emt 00:00:15]} 6. cxd5 {[%clk 01:33:00]} {[%emt
00:00:08]} Nxd5 {[%clk 01:32:24]} {[%emt 00:00:15]} 7. Bc4 {[%clk 01:33:22]}
{[%emt 00:00:08]} Nb6 {[%clk 01:31:38]} {[%emt 00:01:15]} 8. Bb3 {[%clk
01:33:35]} {[%emt 00:00:18]} Bg7 {[%clk 01:30:45]} {[%emt 00:01:23]} 9. Nf3
{[%clk 01:33:19]} {[%emt 00:00:46]} O-O {[%clk 01:29:39]} {[%emt 00:01:35]} 10.
O-O {[%clk 01:32:39]} {[%emt 00:01:11]} Nc6 {[%clk 01:27:34]} {[%emt 00:02:35]}
11. d5 {[%clk 01:29:35]} {[%emt 00:03:35]} Na5 {[%clk 01:24:00]} {[%emt
00:04:02]} 12. Bg5 {[%clk 01:27:01]} {[%emt 00:03:05]} Nxb3 {[%clk 01:17:43]}
{[%emt 00:06:48]} 13. Qxb3 {[%clk 01:26:19]} {[%emt 00:01:12]} Bg4 {[%clk
01:08:10]} {[%emt 00:10:01]} 14. d6 {[%clk 01:15:34]} {[%emt 00:11:16]} Qxd6
{[%clk 01:03:44]} {[%emt 00:04:56]} 15. Nb5 {[%clk 01:11:20]} {[%emt 00:04:45]}
Qd5 {[%clk 00:59:10]} {[%emt 00:05:02]} 16. Bxe7 {[%clk 01:09:54]} {[%emt
00:01:57]} Rfc8 {[%clk 00:53:33]} {[%emt 00:06:06]} 17. Nxa7 {[%clk 01:04:27]}
{[%emt 00:05:58]} Qxb3 {[%clk 00:47:05]} {[%emt 00:06:58]} 18. axb3 {[%clk
01:04:45]} {[%emt 00:00:13]} Re8 {[%clk 00:46:13]} {[%emt 00:01:21]} 19. Bc5
{[%clk 01:01:17]} {[%emt 00:03:59]} Bxf3 {[%clk 00:43:45]} {[%emt 00:02:58]} 20.
gxf3 {[%clk 01:00:09]} {[%emt 00:01:39]} Nd7 {[%clk 00:42:48]} {[%emt
00:01:27]} 21. Be3 {[%clk 00:58:26]} {[%emt 00:02:13]} Bxb2 {[%clk 00:41:26]}
{[%emt 00:01:52]} 22. Rad1 {[%clk 00:58:33]} {[%emt 00:00:23]} Nf8 {[%clk
00:38:23]} {[%emt 00:03:33]} 23. Nb5 {[%clk 00:57:15]} {[%emt 00:01:48]} Red8
{[%clk 00:33:59]} {[%emt 00:04:52]} 24. Bb6 {[%clk 00:54:59]} {[%emt 00:02:47]}
Rxd1 {[%clk 00:31:42]} {[%emt 00:02:46]} 25. Rxd1 {[%clk 00:55:18]} {[%emt
00:00:13]} Ra1 {[%clk 00:29:35]} {[%emt 00:02:35]} 26. Rxa1 {[%clk 00:55:01]}
{[%emt 00:00:48]} Bxa1 {[%clk 00:29:56]} {[%emt 00:00:09]} 27. Nd6 {[%clk
00:54:49]} {[%emt 00:00:43]} Nd7 {[%clk 00:29:59]} {[%emt 00:00:26]} 28. Be3
{[%clk 00:51:40]} {[%emt 00:03:39]} b6 {[%clk 00:29:49]} {[%emt 00:00:39]} 29.
Nc8 {[%clk 00:47:10]} {[%emt 00:05:01]} b5 {[%clk 00:29:14]} {[%emt 00:01:05]}
30. b4 {[%clk 00:44:50]} {[%emt 00:02:50]} Bc3 {[%clk 00:28:20]} {[%emt
00:01:23]} 31. Ne7+ {[%clk 00:45:12]} {[%emt 00:00:09]} Kf8 {[%clk 00:27:16]}
{[%emt 00:01:34]} 32. Nd5 {[%clk 00:43:57]} {[%emt 00:01:46]} Be5 {[%clk
00:25:56]} {[%emt 00:01:47]} 33. Bg5 {[%clk 00:41:49]} {[%emt 00:02:39]} Bd6
{[%clk 00:22:51]} {[%emt 00:03:36]} 34. Kf1 {[%clk 00:40:33]} {[%emt 00:01:46]}
Ne5 {[%clk 00:21:11]} {[%emt 00:02:08]} 35. Bf4 {[%clk 00:38:46]} {[%emt
00:02:19]} Kg7 {[%clk 00:16:42]} {[%emt 00:04:58]} 36. Ke2 {[%clk 00:36:58]}
{[%emt 00:02:20]} h6 {[%clk 00:14:20]} {[%emt 00:02:49]} 37. Ke3 {[%clk
00:25:38]} {[%emt 00:11:52]} Nc4+ {[%clk 00:10:44]} {[%emt 00:04:05]} 38. Kd4
{[%clk 00:21:33]} {[%emt 00:04:37]} Bf8 {[%clk 00:07:38]} {[%emt 00:03:35]} 39.
Kc3 {[%clk 00:19:48]} {[%emt 00:02:16]} g5 {[%clk 00:05:59]} {[%emt 00:02:08]}
40. Be3 {[%clk 00:16:03]} {[%emt 00:04:15]} Bd6 {[%clk 00:04:28]} {[%emt
00:02:01]} 41. h3 {[%clk 00:15:37]} {[%emt 00:00:57]} Kg6 {[%clk 00:04:21]}
{[%emt 00:00:36]} 42. Kb3 {[%clk 00:15:36]} {[%emt 00:00:28]} Kf5 {[%clk
00:04:01]} {[%emt 00:00:52]} 43. Nc3 {[%clk 00:15:18]} {[%emt 00:00:50]} Nxe3
{[%clk 00:02:55]} {[%emt 00:01:36]} 44. fxe3 {[%clk 00:15:37]} {[%emt
00:00:11]} Ke5 {[%clk 00:02:49]} {[%emt 00:00:34]} 45. Nxb5 {[%clk 00:15:39]}
{[%emt 00:00:31]} Be7 {[%clk 00:01:43]} {[%emt 00:01:33]} 46. Nd4 {[%clk
00:15:26]} {[%emt 00:00:44]} Kd5 {[%clk 00:01:42]} {[%emt 00:00:30]} 47. Kc3
{[%clk 00:15:09]} {[%emt 00:00:48]} Bf6 {[%clk 00:01:41]} {[%emt 00:00:30]} 48.
b5 {[%clk 00:13:38]} {[%emt 00:02:03]} Kc5 {[%clk 00:01:19]} {[%emt 00:00:51]}
49. Kd3 {[%clk 00:13:26]} {[%emt 00:00:43]} Kd5 {[%clk 00:01:07]} {[%emt
00:00:40]} 50. Nf5 {[%clk 00:12:26]} {[%emt 00:01:33]} h5 {[%clk 00:00:59]}
{[%emt 00:00:36]} 51. Ng3 {[%clk 00:12:42]} {[%emt 00:00:14]} h4 {[%clk
00:01:06]} {[%emt 00:00:23]} 52. Ne4 {[%clk 00:12:56]} {[%emt 00:00:17]} Bd8
{[%clk 00:01:17]} {[%emt 00:00:18]} 53. b6 {[%clk 00:11:35]} {[%emt 00:01:53]}
Bxb6 {[%clk 00:00:39]} {[%emt 00:01:07]} 54. Nxg5 {[%emt 00:00:35]} f6 {[%clk
00:00:47]} {[%emt 00:00:20]} 55. Ne4 {[%clk 00:11:52]} {[%emt 00:00:09]} Ke5
{[%clk 00:01:00]} {[%emt 00:00:18]} 56. f4+ {[%clk 00:11:40]} {[%emt 00:00:42]}
Kf5 {[%clk 00:01:02]} {[%emt 00:00:28]} 57. Nd2 {[%clk 00:11:37]} {[%emt
00:00:32]} Kg6 {[%clk 00:00:44]} {[%emt 00:00:49]} 58. Nf3 {[%clk 00:11:56]}
{[%emt 00:00:11]} Kh5 {[%clk 00:00:49]} {[%emt 00:00:23]} 59. Ke4 {[%clk
00:12:01]} {[%emt 00:00:27]} Ba7 {[%clk 00:00:40]} {[%emt 00:00:38]} 60. Nd4
{[%clk 00:12:17]} {[%emt 00:00:15]} Kg6 {[%clk 00:00:51]} {[%emt 00:00:18]} 61.
Kf3 {[%clk 00:11:50]} {[%emt 00:00:58]} f5 {[%clk 00:00:46]} {[%emt 00:00:34]}
62. Ke2 {[%clk 00:11:59]} {[%emt 00:00:22]} Bb6 {[%clk 00:00:35]} {[%emt
00:00:41]} 63. Kd3 {[%clk 00:12:21]} {[%emt 00:00:08]} Bd8 {[%clk 00:00:35]}
{[%emt 00:00:28]} 64. Kc4 {[%clk 00:12:13]} {[%emt 00:00:39]} Kf6 {[%clk
00:00:37]} {[%emt 00:00:28]} 65. Kd5 {[%clk 00:12:35]} {[%emt 00:00:09]} Be7
{[%clk 00:00:47]} {[%emt 00:00:20]} 66. Nf3 {[%clk 00:12:46]} {[%emt 00:00:19]}
Kg6 {[%clk 00:00:33]} {[%emt 00:00:43]} 67. Ke6 {[%clk 00:13:07]} {[%emt
00:00:10]} Bc5 {[%clk 00:00:38]} {[%emt 00:00:24]} 68. Nxh4 {[%clk 00:13:24]}
{[%emt 00:00:14]} Kh5 {[%clk 00:00:56]} {[%emt 00:00:12]} 69. Nxf5 {[%clk
00:13:44]} {[%emt 00:00:10]} Kg6 {[%clk 00:01:00]} {[%emt 00:00:26]} 70. e4
{[%clk 00:13:55]} {[%emt 00:00:19]} 1-0

[Event "ONJK 2024 ABC"]
[Site "Velp, Netherlands"]
[Date "2024.08.03"]
[Round "2.13"]
[White "Burger, Dominick"]
[Black "Zhao, Nick"]
[Result "0-1"]
[TimeControl "90 minutes + 30 seconds"]
[WhiteElo "1686"]
[BlackElo "1836"]

1. e4 {[%clk 01:30:52]} {[%emt 00:00:02]} e5 {[%clk 01:30:57]} {[%emt
00:00:03]} 2. Nf3 {[%clk 01:31:14]} {[%emt 00:00:08]} Nc6 {[%clk 01:31:22]}
{[%emt 00:00:05]} 3. Bc4 {[%clk 01:31:36]} {[%emt 00:00:08]} Nf6 {[%clk
01:31:47]} {[%emt 00:00:06]} 4. Nc3 {[%clk 01:30:23]} {[%emt 00:01:44]} Nxe4
{[%clk 01:32:07]} {[%emt 00:00:10]} 5. Bxf7+ {[%clk 01:30:12]} {[%emt
00:00:40]} Kxf7 {[%clk 01:31:59]} {[%emt 00:00:38]} 6. Nxe4 {[%clk 01:30:28]}
{[%emt 00:00:15]} d5 {[%clk 01:29:23]} {[%emt 00:03:06]} 7. Neg5+ {[%clk
01:26:19]} {[%emt 00:04:38]} Kg8 {[%clk 01:26:59]} {[%emt 00:02:54]} 8. d3
{[%clk 01:23:03]} {[%emt 00:03:47]} h6 {[%clk 01:23:55]} {[%emt 00:03:33]} 9.
Nh3 {[%clk 01:21:32]} {[%emt 00:02:02]} Bg4 {[%clk 01:23:36]} {[%emt 00:00:50]}
10. Be3 {[%clk 01:19:54]} {[%emt 00:02:08]} Qf6 {[%clk 01:21:25]} {[%emt
00:02:41]} 11. c3 {[%clk 01:18:12]} {[%emt 00:02:12]} Rd8 {[%clk 01:17:32]}
{[%emt 00:04:23]} 12. Qe2 {[%clk 01:14:16]} {[%emt 00:04:26]} d4 {[%clk
00:46:02]} {[%emt 00:32:01]} 13. Bd2 {[%clk 01:14:20]} {[%emt 00:00:25]} Bc5
{[%clk 00:45:21]} {[%emt 00:01:10]} 14. Nhg1 {[%clk 01:08:39]} {[%emt
00:06:12]} dxc3 {[%clk 00:36:57]} {[%emt 00:08:54]} 15. Bxc3 {[%clk 01:05:19]}
{[%emt 00:03:50]} Nd4 {[%clk 00:36:19]} {[%emt 00:01:07]} 16. Bxd4 {[%clk
01:05:19]} {[%emt 00:00:31]} exd4 {[%clk 00:33:43]} {[%emt 00:03:06]} 17. Qe4
{[%emt 00:10:07]} Bf5 {[%clk 00:26:20]} {[%emt 00:04:12]} 18. Qxb7 {[%clk
00:59:00]} {[%emt 00:00:52]} Kh7 {[%clk 00:24:38]} {[%emt 00:02:11]} 19. Qb3
{[%clk 00:56:50]} {[%emt 00:02:41]} Rhe8+ {[%clk 00:21:40]} {[%emt 00:03:28]}
20. Kd2 {[%clk 00:55:38]} {[%emt 00:01:42]} Rb8 {[%clk 00:21:10]} {[%emt
00:01:00]} 21. Qc2 {[%clk 00:54:03]} {[%emt 00:02:04]} Bb4+ {[%clk 00:19:42]}
{[%emt 00:01:58]} 22. Kd1 {[%clk 00:54:24]} {[%emt 00:00:09]} Qa6 {[%clk
00:15:22]} {[%emt 00:04:49]} 23. Qc4 {[%clk 00:50:55]} {[%emt 00:03:59]} Bxd3
{[%clk 00:13:04]} {[%emt 00:02:49]} 24. Qxa6 {[%clk 00:50:12]} {[%emt
00:01:13]} Bxa6 {[%clk 00:13:32]} {[%emt 00:00:02]} 25. Nh3 {[%clk 00:48:16]}
{[%emt 00:02:25]} Be2+ {[%clk 00:11:51]} {[%emt 00:02:12]} 26. Kc1 {[%clk
00:48:03]} {[%emt 00:00:43]} Bxf3 {[%clk 00:09:12]} {[%emt 00:03:09]} 27. gxf3
{[%clk 00:48:22]} {[%emt 00:00:11]} Re2 {[%clk 00:08:52]} {[%emt 00:00:50]} 28.
a3 {[%clk 00:48:14]} {[%emt 00:00:38]} Bd6 {[%clk 00:08:33]} {[%emt 00:00:49]}
29. b4 {[%clk 00:48:05]} {[%emt 00:00:40]} Rb6 {[%clk 00:08:47]} {[%emt
00:00:16]} 30. Kd1 {[%clk 00:47:36]} {[%emt 00:00:58]} d3 {[%clk 00:09:07]}
{[%emt 00:00:10]} 31. Re1 {[%clk 00:47:01]} {[%emt 00:01:05]} Be5 {[%clk
00:08:02]} {[%emt 00:01:35]} 32. Rb1 {[%clk 00:44:53]} {[%emt 00:02:37]} Rxe1+
{[%clk 00:06:51]} {[%emt 00:01:42]} 33. Kxe1 {[%clk 00:45:07]} {[%emt
00:00:17]} Bxh2 {[%clk 00:05:57]} {[%emt 00:01:23]} 34. f4 {[%clk 00:45:24]}
{[%emt 00:00:14]} Kg6 {[%clk 00:05:05]} {[%emt 00:01:21]} 35. Kd2 {[%clk
00:44:48]} {[%emt 00:01:04]} Kf5 {[%clk 00:05:31]} {[%emt 00:00:05]} 36. Kxd3
{[%clk 00:43:16]} {[%emt 00:02:02]} Kg4 {[%clk 00:05:24]} {[%emt 00:00:37]} 37.
Ng1 {[%clk 00:43:24]} {[%emt 00:00:22]} Bxf4 {[%clk 00:04:54]} {[%emt
00:01:00]} 38. Ne2 {[%clk 00:42:59]} {[%emt 00:00:55]} Bg5 {[%clk 00:04:28]}
{[%emt 00:00:56]} 39. Rf1 {[%clk 00:39:53]} {[%emt 00:03:35]} Kf3 {[%clk
00:03:51]} {[%emt 00:01:08]} 40. Ng1 {[%clk 00:39:48]} {[%emt 00:00:35]} Kg2
{[%clk 00:04:04]} {[%emt 00:00:17]} 41. Rb1 {[%clk 00:39:22]} {[%emt 00:00:56]}
Rf6 {[%clk 00:04:15]} {[%emt 00:00:20]} 42. f3 {[%clk 00:39:33]} {[%emt
00:00:20]} Re6 {[%clk 00:04:01]} {[%emt 00:00:44]} 43. b5 {[%clk 00:38:04]}
{[%emt 00:01:58]} Re3+ {[%clk 00:04:20]} {[%emt 00:00:11]} 44. Kd4 {[%clk
00:38:05]} {[%emt 00:00:29]} Rxa3 {[%clk 00:04:39]} {[%emt 00:00:11]} 45. Ke4
{[%clk 00:37:39]} {[%emt 00:00:55]} Ra4+ {[%clk 00:04:07]} {[%emt 00:01:03]} 46.
Kd3 {[%clk 00:37:02]} {[%emt 00:01:06]} Rh4 {[%clk 00:03:43]} {[%emt 00:00:54]}
47. Ne2 {[%clk 00:34:46]} {[%emt 00:02:47]} Kxf3 {[%clk 00:04:03]} {[%emt
00:00:10]} 48. Rf1 {[%clk 00:35:08]} {[%emt 00:00:09]} Kg2 {[%clk 00:03:40]}
{[%emt 00:00:52]} 49. Rf7 {[%clk 00:35:12]} {[%emt 00:00:26]} Bf6 {[%clk
00:03:43]} {[%emt 00:00:27]} 50. Rxc7 {[%clk 00:35:14]} {[%emt 00:00:28]} Rb4
{[%clk 00:03:44]} {[%emt 00:00:29]} 51. Rc2 {[%clk 00:35:08]} {[%emt 00:00:37]}
Kh3 {[%clk 00:03:13]} {[%emt 00:01:01]} 52. Ng1 {[%clk 00:34:06]} {[%emt
00:01:31]} Kg4 {[%clk 00:03:28]} {[%emt 00:00:15]} 53. Rg2+ {[%clk 00:34:23]}
{[%emt 00:00:13]} Kf5 {[%clk 00:03:45]} {[%emt 00:00:13]} 54. Rf2+ {[%clk
00:34:21]} {[%emt 00:00:31]} Ke6 {[%clk 00:04:02]} {[%emt 00:00:13]} 55. Ra2
{[%clk 00:34:11]} {[%emt 00:00:41]} Rxb5 {[%clk 00:03:21]} {[%emt 00:01:12]} 56.
Rxa7 {[%clk 00:34:34]} {[%emt 00:00:07]} Rb3+ {[%clk 00:03:39]} {[%emt
00:00:12]} 57. Ke2 {[%clk 00:34:21]} {[%emt 00:00:42]} Bd4 {[%clk 00:03:50]}
{[%emt 00:00:19]} 58. Ra6+ {[%clk 00:34:48]} {[%emt 00:00:04]} Rb6 {[%clk
00:03:57]} {[%emt 00:00:23]} 59. Rxb6+ {[%clk 00:35:09]} {[%emt 00:00:09]} Bxb6
{[%clk 00:04:22]} {[%emt 00:00:05]} 60. Nh3 {[%clk 00:35:31]} {[%emt 00:00:07]}
Kf5 {[%clk 00:04:42]} {[%emt 00:00:11]} 61. Kf3 {[%clk 00:35:50]} {[%emt
00:00:11]} g5 {[%clk 00:04:57]} {[%emt 00:00:15]} 62. Kg3 {[%clk 00:34:38]}
{[%emt 00:01:43]} g4 {[%clk 00:04:55]} {[%emt 00:00:32]} 63. Nf4 {[%clk
00:34:58]} {[%emt 00:00:09]} Bc7 {[%clk 00:05:19]} {[%emt 00:00:06]} 0-1

[Event "ONJK 2024 ABC"]
[Site "Velp, Netherlands"]
[Date "2024.08.03"]
[Round "2.14"]
[White "Meert, Maarin"]
[Black "Formanoy, David"]
[Result "1-0"]
[TimeControl "90 minutes + 30 seconds"]
[WhiteElo "1811"]
[BlackElo "1686"]

1. c4 {[%clk 01:30:55]} {[%emt 00:00:05]} e5 {[%clk 01:30:52]} {[%emt
00:00:09]} 2. g3 {[%clk 01:31:19]} {[%emt 00:00:05]} Nc6 {[%clk 01:31:05]}
{[%emt 00:00:18]} 3. Bg2 {[%clk 01:31:35]} {[%emt 00:00:13]} Nf6 {[%clk
01:31:23]} {[%emt 00:00:12]} 4. Nc3 {[%clk 01:31:59]} {[%emt 00:00:06]} Bc5
{[%clk 01:31:08]} {[%emt 00:00:46]} 5. e3 {[%clk 01:31:52]} {[%emt 00:00:36]}
a6 {[%clk 01:31:24]} {[%emt 00:00:15]} 6. a3 {[%clk 01:32:12]} {[%emt
00:00:10]} d6 {[%clk 01:31:37]} {[%emt 00:00:17]} 7. Nge2 {[%clk 01:32:28]}
{[%emt 00:00:14]} O-O {[%clk 01:31:42]} {[%emt 00:00:25]} 8. O-O {[%clk
01:32:43]} {[%emt 00:00:15]} Bg4 {[%clk 01:30:56]} {[%emt 00:01:16]} 9. b4
{[%clk 01:30:03]} {[%emt 00:03:09]} Ba7 {[%clk 01:30:48]} {[%emt 00:00:38]} 10.
d3 {[%clk 01:27:38]} {[%emt 00:02:55]} Rb8 {[%clk 01:30:09]} {[%emt 00:01:10]}
11. h3 {[%clk 01:24:35]} {[%emt 00:03:33]} Be6 {[%clk 01:28:25]} {[%emt
00:02:13]} 12. Bb2 {[%clk 01:21:46]} {[%emt 00:03:20]} h6 {[%clk 01:27:35]}
{[%emt 00:01:19]} 13. Qd2 {[%clk 01:17:34]} {[%emt 00:04:42]} Qd7 {[%clk
01:23:04]} {[%emt 00:05:02]} 14. Kh2 {[%clk 01:14:21]} {[%emt 00:03:42]} Rfe8
{[%clk 01:18:08]} {[%emt 00:05:27]} 15. Rac1 {[%clk 01:04:22]} {[%emt
00:10:28]} Ne7 {[%clk 01:17:01]} {[%emt 00:01:38]} 16. e4 {[%clk 01:02:06]}
{[%emt 00:02:46]} c6 {[%clk 01:17:07]} {[%emt 00:00:25]} 17. f4 {[%clk
01:01:43]} {[%emt 00:00:52]} Qc7 {[%clk 01:16:04]} {[%emt 00:01:32]} 18. f5
{[%clk 00:59:17]} {[%emt 00:02:57]} Bd7 {[%clk 01:14:58]} {[%emt 00:01:36]} 19.
g4 {[%clk 00:58:10]} {[%emt 00:01:37]} b5 {[%clk 01:13:46]} {[%emt 00:01:42]}
20. cxb5 {[%clk 00:56:45]} {[%emt 00:01:54]} axb5 {[%clk 01:14:06]} {[%emt
00:00:11]} 21. g5 {[%clk 00:52:55]} {[%emt 00:04:20]} hxg5 {[%clk 01:13:17]}
{[%emt 00:01:19]} 22. Qxg5 {[%clk 00:52:14]} {[%emt 00:01:10]} Nh7 {[%clk
01:13:24]} {[%emt 00:00:24]} 23. Qg3 {[%clk 00:49:09]} {[%emt 00:03:33]} f6
{[%clk 01:11:03]} {[%emt 00:02:52]} 24. Qg4 {[%clk 00:38:57]} {[%emt 00:10:42]}
Rf8 {[%clk 01:06:53]} {[%emt 00:04:41]} 25. Ng3 {[%clk 00:37:57]} {[%emt
00:01:29]} Be3 {[%clk 01:02:02]} {[%emt 00:05:21]} 26. Nh5 {[%clk 00:36:09]}
{[%emt 00:02:18]} Bh6 {[%clk 01:00:14]} {[%emt 00:02:19]} 27. Rce1 {[%clk
00:33:41]} {[%emt 00:02:58]} Be8 {[%clk 00:59:43]} {[%emt 00:01:00]} 28. Bc1
{[%clk 00:30:31]} {[%emt 00:03:40]} Bxh5 {[%clk 00:59:23]} {[%emt 00:00:51]} 29.
Qxh5 {[%clk 00:30:51]} {[%emt 00:00:09]} Bxc1 {[%clk 00:59:45]} {[%emt
00:00:08]} 30. Rxc1 {[%clk 00:31:16]} {[%emt 00:00:05]} Qd8 {[%clk 00:56:32]}
{[%emt 00:03:44]} 31. h4 {[%clk 00:30:14]} {[%emt 00:01:31]} Qe8 {[%clk
00:55:51]} {[%emt 00:01:11]} 32. Bf3 {[%clk 00:30:28]} {[%emt 00:00:16]} Qxh5
{[%clk 00:54:38]} {[%emt 00:01:43]} 33. Bxh5 {[%clk 00:30:50]} {[%emt
00:00:08]} Rfc8 {[%clk 00:53:48]} {[%emt 00:01:20]} 34. Rfd1 {[%clk 00:28:03]}
{[%emt 00:03:17]} Rb7 {[%clk 00:53:06]} {[%emt 00:01:12]} 35. d4 {[%clk
00:27:56]} {[%emt 00:00:37]} Rd7 {[%clk 00:47:33]} {[%emt 00:06:03]} 36. d5
{[%clk 00:24:36]} {[%emt 00:03:50]} Rdc7 {[%clk 00:45:37]} {[%emt 00:02:26]} 37.
dxc6 {[%clk 00:20:13]} {[%emt 00:04:53]} Rxc6 {[%clk 00:45:01]} {[%emt
00:01:06]} 38. Ne2 {[%clk 00:19:43]} {[%emt 00:01:01]} Rxc1 {[%clk 00:38:24]}
{[%emt 00:07:07]} 39. Rxc1 {[%clk 00:20:05]} {[%emt 00:00:08]} Kf8 {[%clk
00:23:03]} {[%emt 00:15:50]} 40. Rxc8+ {[%clk 00:20:15]} {[%emt 00:00:19]} Nxc8
{[%clk 00:23:24]} {[%emt 00:00:10]} 41. Nc3 {[%clk 00:20:36]} {[%emt 00:00:09]}
Na7 {[%clk 00:23:30]} {[%emt 00:00:24]} 42. Be2 {[%clk 00:20:50]} {[%emt
00:00:15]} Ke7 {[%clk 00:23:05]} {[%emt 00:00:55]} 43. Nxb5 {[%clk 00:21:03]}
{[%emt 00:00:19]} Nxb5 {[%clk 00:23:21]} {[%emt 00:00:14]} 44. Bxb5 {[%clk
00:21:26]} {[%emt 00:00:06]} Kd8 {[%clk 00:23:32]} {[%emt 00:00:19]} 45. Kg3
{[%clk 00:21:29]} {[%emt 00:00:27]} Nf8 {[%clk 00:23:05]} {[%emt 00:00:56]} 46.
a4 {[%clk 00:21:14]} {[%emt 00:00:46]} Kc7 {[%clk 00:22:24]} {[%emt 00:01:10]}
47. a5 {[%clk 00:21:17]} {[%emt 00:00:28]} Kb7 {[%clk 00:21:32]} {[%emt
00:01:18]} 48. Kf3 {[%clk 00:20:19]} {[%emt 00:01:32]} Ka7 {[%clk 00:21:14]}
{[%emt 00:00:48]} 49. Be8 {[%clk 00:20:24]} {[%emt 00:00:24]} Nh7 {[%clk
00:20:35]} {[%emt 00:01:10]} 50. Ke3 {[%clk 00:19:58]} {[%emt 00:00:56]} Ka6
{[%clk 00:19:23]} {[%emt 00:01:43]} 51. Kd3 {[%clk 00:20:08]} {[%emt 00:00:20]}
Nf8 {[%clk 00:19:08]} {[%emt 00:00:45]} 52. Kc4 {[%clk 00:20:25]} {[%emt
00:00:13]} Kb7 {[%clk 00:19:18]} {[%emt 00:00:20]} 53. Kd5 {[%clk 00:20:33]}
{[%emt 00:00:22]} Kc7 {[%clk 00:19:23]} {[%emt 00:00:25]} 54. b5 {[%clk
00:20:49]} {[%emt 00:00:14]} g5 {[%clk 00:19:12]} {[%emt 00:00:41]} 55. fxg6
{[%clk 00:20:54]} {[%emt 00:00:25]} Nxg6 {[%clk 00:19:14]} {[%emt 00:00:28]} 56.
Bxg6 {[%clk 00:21:16]} {[%emt 00:00:08]} f5 {[%clk 00:19:38]} {[%emt 00:00:06]}
57. Bxf5 {[%clk 00:21:24]} {[%emt 00:00:21]} Kb7 {[%clk 00:19:35]} {[%emt
00:00:33]} 58. h5 {[%clk 00:21:43]} {[%emt 00:00:12]} Ka7 {[%clk 00:19:59]}
{[%emt 00:00:06]} 59. h6 {[%clk 00:22:06]} {[%emt 00:00:07]} Kb7 {[%clk
00:20:27]} {[%emt 00:00:03]} 60. h7 {[%clk 00:22:28]} {[%emt 00:00:07]} 1-0